[Event "MČR juniorů a juniorek v rapid šachu 2024"]
[Site "Hotel Fit Fun, Harrachov, Czech Republic"]
[Date "2024.09.22"]
[Round "7.35"]
[White "Tichy Richard"]
[Black "Vondra Filip"]
[Result "0-1"]
[TimeControl "20+5"]
[WhiteFideId "23727063"]
[BlackFideId "23725176"]
[WhiteElo "1698"]
[BlackElo "1598"]

1. Nf3 {[%clk 00:20:05]} {[%emt 00:00:04]} d5 {[%clk 00:20:09]} {[%emt
00:00:02]} 2. d4 {[%clk 00:20:09]} {[%emt 00:00:01]} e6 {[%clk 00:20:12]}
{[%emt 00:00:02]} 3. g3 {[%clk 00:20:09]} {[%emt 00:00:04]} c5 {[%clk
00:20:13]} {[%emt 00:00:04]} 4. c4 {[%clk 00:19:55]} {[%emt 00:00:19]} Nc6
{[%clk 00:20:16]} {[%emt 00:00:02]} 5. Nc3 {[%clk 00:19:52]} {[%emt 00:00:09]}
Nf6 {[%clk 00:20:18]} {[%emt 00:00:02]} 6. cxd5 {[%clk 00:19:42]} {[%emt
00:00:15]} exd5 {[%clk 00:20:22]} {[%emt 00:00:02]} 7. Bg2 {[%clk 00:19:28]}
{[%emt 00:00:19]} Be6 {[%clk 00:20:00]} {[%emt 00:00:27]} 8. Bf4 {[%clk
00:19:10]} {[%emt 00:00:23]} Qb6 {[%clk 00:19:57]} {[%emt 00:00:07]} 9. b3
{[%clk 00:17:53]} {[%emt 00:01:22]} cxd4 {[%clk 00:19:44]} {[%emt 00:00:19]} 10.
Na4 {[%clk 00:16:03]} {[%emt 00:01:55]} Bb4+ {[%clk 00:18:12]} {[%emt
00:01:36]} 11. Bd2 {[%clk 00:15:48]} {[%emt 00:00:21]} Bxd2+ {[%clk 00:18:08]}
{[%emt 00:00:08]} 12. Qxd2 {[%clk 00:15:43]} {[%emt 00:00:10]} Qb4 {[%clk
00:18:12]} {[%emt 00:00:01]} 13. O-O-O {[%clk 00:14:51]} {[%emt 00:00:57]}
Qxd2+ {[%clk 00:15:14]} {[%emt 00:03:03]} 14. Rxd2 {[%clk 00:14:51]} {[%emt
00:00:05]} Ne4 {[%clk 00:15:18]} 15. Rc2 {[%clk 00:12:23]} {[%emt 00:02:34]}
Nxf2 {[%clk 00:13:51]} {[%emt 00:01:32]} 16. Rf1 {[%clk 00:11:24]} {[%emt
00:01:04]} Ne4 {[%clk 00:13:24]} {[%emt 00:00:33]} 17. Nc5 {[%clk 00:10:41]}
{[%emt 00:00:48]} Nxc5 {[%clk 00:11:42]} {[%emt 00:01:46]} 18. Rxc5 {[%clk
00:10:41]} {[%emt 00:00:05]} O-O {[%clk 00:11:43]} {[%emt 00:00:03]} 19. Rd1
{[%clk 00:10:25]} {[%emt 00:00:22]} Rac8 {[%clk 00:11:22]} {[%emt 00:00:26]} 20.
Kb2 {[%clk 00:08:27]} {[%emt 00:02:03]} b6 {[%clk 00:08:58]} {[%emt 00:02:30]}
21. Rcc1 {[%clk 00:05:25]} {[%emt 00:03:06]} d3 {[%clk 00:03:35]} {[%emt
00:05:28]} 22. Rxd3 {[%clk 00:03:57]} {[%emt 00:01:33]} Nb4 {[%clk 00:03:39]}
23. Rdd1 {[%clk 00:03:56]} {[%emt 00:00:06]} Rfd8 {[%clk 00:02:35]} {[%emt
00:01:09]} 24. a3 {[%clk 00:03:08]} {[%emt 00:00:53]} Na6 {[%clk 00:01:28]}
{[%emt 00:01:12]} 25. Ng5 {[%clk 00:01:40]} {[%emt 00:01:33]} Nc5 {[%clk
00:00:43]} {[%emt 00:00:50]} 26. Nxe6 {[%clk 00:00:24]} {[%emt 00:01:22]} fxe6
{[%clk 00:00:42]} {[%emt 00:00:05]} 27. Bh3 {[%clk 00:00:24]} {[%emt 00:00:05]}
Kf7 {[%clk 00:00:33]} {[%emt 00:00:14]} 28. Rf1+ {[%clk 00:00:21]} {[%emt
00:00:08]} Ke7 {[%clk 00:00:31]} {[%emt 00:00:07]} 29. b4 {[%clk 00:00:24]}
{[%emt 00:00:03]} Ne4 {[%clk 00:00:31]} {[%emt 00:00:04]} 30. a4 {[%emt
00:00:31]} 0-1



[ePGN "0.1;DGT LiveChess/2.2.6"]

[Event "MČR juniorů a juniorek v rapid šachu 2024"]
[Site "Hotel Fit Fun, Harrachov, Czech Republic"]
[Date "2024.09.22"]
[Round "7.36"]
[White "Dufkova Tereza"]
[Black "Musil Tomas"]
[Result "1-0"]
[TimeControl "20+5"]
[WhiteFideId "23744383"]
[BlackFideId "23762888"]
[WhiteElo "1601"]
[BlackElo "1519"]

1. e4 {[%clk 00:20:07]} {[%emt 00:00:02]} e6 {[%clk 00:18:52]} {[%emt
00:01:19]} 2. d4 {[%clk 00:19:02]} {[%emt 00:01:10]} d5 {[%clk 00:18:56]}
{[%emt 00:00:01]} 3. e5 {[%clk 00:19:05]} {[%emt 00:00:02]} c5 {[%clk
00:19:00]} {[%emt 00:00:01]} 4. c3 {[%clk 00:19:06]} {[%emt 00:00:04]} Nc6
{[%clk 00:19:04]} 5. Nf3 {[%clk 00:19:09]} {[%emt 00:00:02]} Bd7 {[%clk
00:19:08]} {[%emt 00:00:02]} 6. Bg5 {[%clk 00:18:36]} {[%emt 00:00:37]} f6
{[%clk 00:19:01]} {[%emt 00:00:11]} 7. Bh4 {[%clk 00:18:28]} {[%emt 00:00:14]}
Be7 {[%clk 00:18:54]} {[%emt 00:00:11]} 8. Bb5 {[%emt 00:00:14]} Nxe5 {[%clk
00:18:37]} {[%emt 00:00:20]} 9. Bxd7+ {[%clk 00:16:20]} {[%emt 00:02:08]} Nxd7
{[%clk 00:18:40]} {[%emt 00:00:01]} 10. Nbd2 {[%clk 00:16:03]} {[%emt
00:00:21]} Qb6 {[%clk 00:18:05]} {[%emt 00:00:40]} 11. Qc2 {[%clk 00:14:37]}
{[%emt 00:01:31]} Rc8 {[%clk 00:17:11]} {[%emt 00:00:59]} 12. Nb3 {[%clk
00:14:27]} {[%emt 00:00:15]} Nh6 {[%clk 00:16:29]} {[%emt 00:00:47]} 13. O-O
{[%clk 00:14:15]} {[%emt 00:00:16]} Nf5 {[%clk 00:16:20]} {[%emt 00:00:14]} 14.
Qd2 {[%clk 00:13:26]} {[%emt 00:00:55]} Bd6 {[%clk 00:13:29]} {[%emt 00:02:55]}
15. Rfe1 {[%clk 00:12:07]} {[%emt 00:01:24]} e5 {[%clk 00:13:27]} {[%emt
00:00:08]} 16. dxe5 {[%clk 00:11:57]} {[%emt 00:00:14]} Nxe5 {[%clk 00:13:12]}
{[%emt 00:00:20]} 17. Nxe5 {[%clk 00:11:03]} {[%emt 00:01:00]} Bxe5 {[%clk
00:13:12]} {[%emt 00:00:04]} 18. Bg3 {[%clk 00:10:04]} {[%emt 00:01:04]} Nxg3
{[%clk 00:13:15]} {[%emt 00:00:02]} 19. hxg3 {[%clk 00:10:07]} {[%emt
00:00:03]} O-O {[%clk 00:11:52]} {[%emt 00:01:28]} 20. Qxd5+ {[%clk 00:10:05]}
{[%emt 00:00:07]} Kh8 {[%clk 00:11:50]} {[%emt 00:00:06]} 21. Rab1 {[%clk
00:09:25]} {[%emt 00:00:45]} Rfd8 {[%clk 00:11:20]} {[%emt 00:00:35]} 22. Qf3
{[%clk 00:09:26]} {[%emt 00:00:04]} c4 {[%clk 00:10:59]} {[%emt 00:00:26]} 23.
Nc1 {[%clk 00:08:28]} {[%emt 00:00:53]} Bxc3 {[%clk 00:10:37]} {[%emt
00:00:38]} 24. Re7 {[%clk 00:07:35]} {[%emt 00:00:57]} Bb4 {[%clk 00:09:49]}
{[%emt 00:00:54]} 25. Rxb7 {[%clk 00:07:35]} {[%emt 00:00:05]} Qc5 {[%clk
00:09:16]} {[%emt 00:00:37]} 26. Qg4 {[%clk 00:06:03]} {[%emt 00:01:36]} Rc7
{[%clk 00:07:59]} {[%emt 00:01:24]} 27. Rxc7 {[%clk 00:05:10]} {[%emt
00:00:58]} Qxc7 {[%clk 00:08:02]} {[%emt 00:00:01]} 28. Ne2 {[%clk 00:04:41]}
{[%emt 00:00:35]} Bd2 {[%clk 00:05:47]} {[%emt 00:02:19]} 29. Rd1 {[%clk
00:04:10]} {[%emt 00:00:36]} Qc6 {[%clk 00:04:45]} {[%emt 00:01:07]} 30. Nd4
{[%clk 00:03:53]} {[%emt 00:00:22]} Rxd4 {[%clk 00:01:46]} {[%emt 00:03:04]} 31.
Qxd4 {[%clk 00:03:54]} {[%emt 00:00:04]} 1-0



[ePGN "0.1;DGT LiveChess/2.2.6"]

[Event "MČR juniorů a juniorek v rapid šachu 2024"]
[Site "Hotel Fit Fun, Harrachov, Czech Republic"]
[Date "2024.09.22"]
[Round "7.4"]
[White "Sichrovsky Tomas"]
[Black "Mikolas Petr"]
[Result "0-1"]
[TimeControl "20+5"]
[WhiteFideId "23704730"]
[BlackFideId "23713224"]
[WhiteElo "1928"]
[BlackElo "1892"]

1. Nf3 {[%clk 00:20:07]} {[%emt 00:00:01]} Nf6 {[%clk 00:20:08]} {[%emt
00:00:03]} 2. b3 {[%clk 00:20:11]} g6 {[%clk 00:20:01]} {[%emt 00:00:12]} 3.
Bb2 {[%clk 00:20:15]} Bg7 {[%clk 00:20:04]} {[%emt 00:00:01]} 4. e3 {[%clk
00:20:19]} {[%emt 00:00:02]} O-O {[%clk 00:20:00]} {[%emt 00:00:09]} 5. c4
{[%clk 00:20:21]} {[%emt 00:00:02]} d6 {[%clk 00:19:38]} {[%emt 00:00:28]} 6.
d4 {[%clk 00:20:25]} {[%emt 00:00:01]} c5 {[%clk 00:17:23]} {[%emt 00:02:19]} 7.
Be2 {[%clk 00:20:28]} {[%emt 00:00:03]} Ne4 {[%clk 00:17:07]} {[%emt 00:00:21]}
8. Nbd2 {[%clk 00:20:14]} {[%emt 00:00:19]} Nxd2 {[%clk 00:15:57]} {[%emt
00:01:14]} 9. Nxd2 {[%clk 00:20:18]} {[%emt 00:00:02]} cxd4 {[%clk 00:15:05]}
{[%emt 00:00:57]} 10. exd4 {[%clk 00:20:21]} {[%emt 00:00:01]} Nc6 {[%clk
00:15:07]} {[%emt 00:00:03]} 11. Nf3 {[%clk 00:20:13]} {[%emt 00:00:14]} Qa5+
{[%clk 00:15:11]} {[%emt 00:00:01]} 12. Qd2 {[%clk 00:20:13]} {[%emt 00:00:05]}
Qxd2+ {[%clk 00:15:14]} {[%emt 00:00:02]} 13. Kxd2 {[%clk 00:20:17]} {[%emt
00:00:01]} Bg4 {[%clk 00:15:13]} {[%emt 00:00:06]} 14. Kd3 {[%clk 00:16:34]}
{[%emt 00:03:48]} e5 {[%clk 00:12:43]} {[%emt 00:02:35]} 15. dxe5 {[%clk
00:16:03]} {[%emt 00:00:36]} dxe5 {[%clk 00:12:47]} {[%emt 00:00:01]} 16. Kc2
{[%clk 00:15:22]} {[%emt 00:00:46]} Nb4+ {[%clk 00:12:21]} {[%emt 00:00:31]} 17.
Kd2 {[%clk 00:12:56]} {[%emt 00:02:32]} Rad8+ {[%clk 00:11:44]} {[%emt
00:00:41]} 18. Ke1 {[%clk 00:12:59]} {[%emt 00:00:02]} Bxf3 {[%clk 00:11:31]}
{[%emt 00:00:17]} 19. gxf3 {[%clk 00:12:45]} {[%emt 00:00:20]} Nc2+ {[%clk
00:11:35]} 20. Kf1 {[%clk 00:12:49]} Nxa1 {[%clk 00:11:38]} {[%emt 00:00:01]}
21. Bxa1 {[%clk 00:12:53]} Rd2 {[%clk 00:11:39]} {[%emt 00:00:04]} 0-1



[ePGN "0.1;DGT LiveChess/2.2.6"]

[Event "MČR juniorů a juniorek v rapid šachu 2024"]
[Site "Hotel Fit Fun, Harrachov, Czech Republic"]
[Date "2024.09.22"]
[Round "7.5"]
[White "Jun Rudolf"]
[Black "Garabik Marek"]
[Result "1/2-1/2"]
[TimeControl "20+5"]
[WhiteFideId "376612"]
[BlackFideId "23717742"]
[WhiteElo "2142"]
[BlackElo "1933"]

1. e4 {[%clk 00:20:07]} {[%emt 00:00:02]} e6 {[%clk 00:20:09]} {[%emt
00:00:02]} 2. d4 {[%clk 00:20:05]} {[%emt 00:00:06]} d5 {[%clk 00:20:13]}
{[%emt 00:00:02]} 3. Nd2 {[%clk 00:20:06]} {[%emt 00:00:04]} dxe4 {[%clk
00:19:56]} {[%emt 00:00:21]} 4. Nxe4 {[%clk 00:20:09]} {[%emt 00:00:02]} Be7
{[%clk 00:19:37]} {[%emt 00:00:25]} 5. Nf3 {[%clk 00:20:08]} {[%emt 00:00:05]}
Nf6 {[%clk 00:19:41]} {[%emt 00:00:02]} 6. Bd3 {[%clk 00:20:10]} {[%emt
00:00:03]} Nbd7 {[%clk 00:19:42]} {[%emt 00:00:03]} 7. Ng3 {[%clk 00:19:54]}
{[%emt 00:00:21]} b6 {[%clk 00:18:56]} {[%emt 00:00:52]} 8. O-O {[%clk
00:19:30]} {[%emt 00:00:27]} Bb7 {[%clk 00:18:59]} {[%emt 00:00:02]} 9. Re1
{[%clk 00:18:56]} {[%emt 00:00:40]} O-O {[%clk 00:18:58]} {[%emt 00:00:06]} 10.
c3 {[%clk 00:18:52]} {[%emt 00:00:09]} c5 {[%clk 00:19:00]} {[%emt 00:00:04]}
11. dxc5 {[%clk 00:17:51]} {[%emt 00:01:06]} Nxc5 {[%clk 00:18:58]} {[%emt
00:00:07]} 12. Bc2 {[%clk 00:17:55]} {[%emt 00:00:01]} Qxd1 {[%clk 00:19:01]}
{[%emt 00:00:02]} 13. Rxd1 {[%clk 00:17:58]} {[%emt 00:00:02]} Rad8 {[%clk
00:19:01]} {[%emt 00:00:05]} 14. Be3 {[%clk 00:17:19]} {[%emt 00:00:44]} h6
{[%clk 00:16:31]} {[%emt 00:02:36]} 15. a4 {[%clk 00:17:18]} {[%emt 00:00:06]}
Nd5 {[%clk 00:16:16]} {[%emt 00:00:20]} 16. Bd4 {[%clk 00:16:21]} {[%emt
00:01:02]} f6 {[%clk 00:14:41]} {[%emt 00:01:40]} 17. a5 {[%clk 00:15:57]}
{[%emt 00:00:29]} e5 {[%clk 00:14:06]} {[%emt 00:00:40]} 18. Bxc5 {[%clk
00:15:35]} {[%emt 00:00:26]} Bxc5 {[%clk 00:14:06]} {[%emt 00:00:05]} 19. b4
{[%clk 00:15:26]} {[%emt 00:00:14]} Be7 {[%clk 00:14:01]} {[%emt 00:00:10]} 20.
Nf5 {[%clk 00:15:28]} {[%emt 00:00:03]} g6 {[%clk 00:12:45]} {[%emt 00:01:21]}
21. Nxe7+ {[%clk 00:13:56]} {[%emt 00:01:38]} Nxe7 {[%clk 00:12:48]} {[%emt
00:00:02]} 22. axb6 {[%clk 00:13:12]} {[%emt 00:00:49]} axb6 {[%clk 00:12:19]}
{[%emt 00:00:34]} 23. Ra7 {[%clk 00:12:39]} {[%emt 00:00:38]} Rxd1+ {[%clk
00:12:21]} {[%emt 00:00:02]} 24. Bxd1 {[%clk 00:12:39]} {[%emt 00:00:06]} Rb8
{[%clk 00:12:09]} {[%emt 00:00:16]} 25. Bb3+ {[%clk 00:11:44]} {[%emt
00:01:00]} Kf8 {[%clk 00:11:00]} {[%emt 00:01:14]} 26. Ra1 {[%clk 00:10:49]}
{[%emt 00:01:00]} Rd8 {[%clk 00:09:14]} {[%emt 00:01:51]} 27. Rc1 {[%clk
00:09:30]} {[%emt 00:01:24]} Bd5 {[%clk 00:07:08]} {[%emt 00:02:11]} 28. c4
{[%emt 00:02:59]} Bf7 {[%clk 00:04:24]} {[%emt 00:02:47]} 29. Ba4 {[%clk
00:00:59]} {[%emt 00:05:45]} Rc8 {[%clk 00:03:19]} {[%emt 00:01:10]} 30. Nd2
{[%clk 00:00:22]} {[%emt 00:00:41]} Nc6 {[%clk 00:02:36]} {[%emt 00:00:48]} 31.
h4 {[%clk 00:00:21]} {[%emt 00:00:06]} Nd4 {[%clk 00:02:30]} {[%emt 00:00:11]}
32. Kh2 {[%clk 00:00:09]} {[%emt 00:00:17]} f5 {[%clk 00:02:15]} {[%emt
00:00:21]} 33. c5 {[%clk 00:00:11]} {[%emt 00:00:03]} bxc5 {[%clk 00:02:08]}
{[%emt 00:00:12]} 34. bxc5 {[%clk 00:00:14]} {[%emt 00:00:01]} Bd5 {[%clk
00:01:21]} {[%emt 00:00:52]} 35. Rc3 {[%clk 00:00:19]} {[%emt 00:00:01]} Ke7
{[%clk 00:01:12]} {[%emt 00:00:14]} 36. Re3 {[%clk 00:00:08]} {[%emt 00:00:15]}
Kf6 {[%clk 00:01:01]} {[%emt 00:00:17]} 37. Rc3 {[%clk 00:00:13]} Bc6 {[%clk
00:01:00]} {[%emt 00:00:06]} 38. Bd1 {[%clk 00:00:16]} {[%emt 00:00:02]} Bd5
{[%clk 00:00:58]} {[%emt 00:00:07]} 39. Ba4 {[%clk 00:00:19]} {[%emt 00:00:02]}
Bc6 {[%clk 00:01:02]} {[%emt 00:00:01]} 40. Bd1 {[%clk 00:00:23]} Bd5 {[%clk
00:01:06]} 41. Nf1 {[%clk 00:00:11]} {[%emt 00:00:16]} f4 {[%clk 00:00:54]}
{[%emt 00:00:17]} 42. Nd2 {[%clk 00:00:15]} Ne6 {[%clk 00:00:54]} {[%emt
00:00:06]} 43. Bb3 {[%clk 00:00:14]} {[%emt 00:00:07]} Bxb3 {[%clk 00:00:51]}
{[%emt 00:00:08]} 44. Rxb3 {[%clk 00:00:17]} {[%emt 00:00:01]} Kf5 {[%clk
00:00:33]} {[%emt 00:00:23]} 45. Rb6 {[%clk 00:00:20]} {[%emt 00:00:02]} Nxc5
{[%clk 00:00:24]} {[%emt 00:00:14]} 46. h5 {[%clk 00:00:23]} {[%emt 00:00:02]}
gxh5 {[%clk 00:00:26]} {[%emt 00:00:03]} 47. Rxh6 {[%clk 00:00:26]} {[%emt
00:00:02]} Kg5 {[%clk 00:00:29]} {[%emt 00:00:02]} 48. Rd6 {[%clk 00:00:23]}
{[%emt 00:00:08]} Kf5 {[%clk 00:00:27]} {[%emt 00:00:07]} 49. Rh6 {[%clk
00:00:26]} {[%emt 00:00:02]} Kg5 {[%clk 00:00:31]} {[%emt 00:00:02]} 50. Rd6
{[%clk 00:00:29]} {[%emt 00:00:02]} Kf5 {[%clk 00:00:35]} {[%emt 00:00:01]} 51.
Nf3 {[%clk 00:00:29]} {[%emt 00:00:04]} Ne4 {[%clk 00:00:33]} {[%emt 00:00:07]}
52. Rh6 {[%clk 00:00:30]} {[%emt 00:00:03]} Nxf2 {[%clk 00:00:26]} {[%emt
00:00:13]} 53. Rxh5+ {[%clk 00:00:34]} {[%emt 00:00:02]} Kg6 {[%clk 00:00:29]}
{[%emt 00:00:01]} 54. Rg5+ {[%clk 00:00:35]} {[%emt 00:00:04]} Kh6 {[%clk
00:00:31]} {[%emt 00:00:03]} 55. Rf5 {[%clk 00:00:30]} {[%emt 00:00:10]} e4
{[%clk 00:00:23]} {[%emt 00:00:13]} 56. Ng1 {[%clk 00:00:27]} {[%emt 00:00:08]}
f3 {[%clk 00:00:20]} {[%emt 00:00:08]} 57. gxf3 {[%clk 00:00:24]} {[%emt
00:00:08]} exf3 {[%clk 00:00:24]} {[%emt 00:00:01]} 58. Nxf3 {[%clk 00:00:25]}
{[%emt 00:00:04]} Rc2 {[%clk 00:00:17]} {[%emt 00:00:12]} 59. Kg3 {[%clk
00:00:25]} {[%emt 00:00:05]} Ne4+ {[%clk 00:00:18]} {[%emt 00:00:05]} 60. Kf4
{[%clk 00:00:28]} {[%emt 00:00:02]} Nd2 {[%clk 00:00:18]} {[%emt 00:00:05]} 61.
Ne5 {[%clk 00:00:25]} {[%emt 00:00:07]} Kg7 {[%clk 00:00:12]} {[%emt 00:00:12]}
62. Rf7+ {[%clk 00:00:28]} {[%emt 00:00:02]} Kg8 {[%clk 00:00:15]} {[%emt
00:00:02]} 63. Kf5 {[%clk 00:00:29]} {[%emt 00:00:04]} Nc4 {[%clk 00:00:11]}
{[%emt 00:00:09]} 64. Re7 {[%clk 00:00:17]} {[%emt 00:00:17]} Nxe5 {[%clk
00:00:14]} {[%emt 00:00:03]} 65. Rxe5 {[%clk 00:00:20]} {[%emt 00:00:02]}
1/2-1/2



[ePGN "0.1;DGT LiveChess/2.2.6"]

[Event "MČR juniorů a juniorek v rapid šachu 2024"]
[Site "Hotel Fit Fun, Harrachov, Czech Republic"]
[Date "2024.09.22"]
[Round "7.6"]
[White "Slaby Matej"]
[Black "Steinbauer Sebastian"]
[Result "1-0"]
[TimeControl "20+5"]
[WhiteFideId "23734876"]
[BlackFideId "399272"]
[WhiteElo "1948"]
[BlackElo "2062"]

1. Nf3 {[%clk 00:20:06]} {[%emt 00:00:02]} Nf6 {[%clk 00:20:09]} {[%emt
00:00:01]} 2. d4 {[%clk 00:20:10]} {[%emt 00:00:02]} g6 {[%clk 00:20:13]}
{[%emt 00:00:01]} 3. Nbd2 {[%clk 00:20:12]} {[%emt 00:00:02]} Bg7 {[%clk
00:20:17]} {[%emt 00:00:02]} 4. e4 {[%clk 00:20:16]} d6 {[%clk 00:20:20]}
{[%emt 00:00:01]} 5. Bd3 {[%clk 00:20:19]} {[%emt 00:00:02]} Nbd7 {[%clk
00:20:20]} {[%emt 00:00:06]} 6. O-O {[%clk 00:20:20]} {[%emt 00:00:03]} c5
{[%clk 00:20:00]} {[%emt 00:00:26]} 7. c3 {[%clk 00:20:23]} {[%emt 00:00:02]}
O-O {[%clk 00:19:59]} {[%emt 00:00:06]} 8. Re1 {[%clk 00:20:22]} {[%emt
00:00:06]} e5 {[%clk 00:19:23]} {[%emt 00:00:41]} 9. dxe5 {[%clk 00:20:23]}
{[%emt 00:00:03]} Nxe5 {[%clk 00:19:22]} {[%emt 00:00:07]} 10. Nxe5 {[%clk
00:19:57]} {[%emt 00:00:30]} dxe5 {[%clk 00:19:26]} {[%emt 00:00:02]} 11. Nc4
{[%clk 00:19:55]} {[%emt 00:00:07]} Qc7 {[%clk 00:19:09]} {[%emt 00:00:22]} 12.
a4 {[%clk 00:19:41]} {[%emt 00:00:19]} b6 {[%clk 00:18:48]} {[%emt 00:00:25]}
13. Qe2 {[%clk 00:18:06]} {[%emt 00:01:40]} Bb7 {[%clk 00:18:35]} {[%emt
00:00:19]} 14. Bg5 {[%clk 00:17:32]} {[%emt 00:00:38]} Ne8 {[%clk 00:17:50]}
{[%emt 00:00:50]} 15. Qe3 {[%clk 00:16:29]} {[%emt 00:01:08]} Nd6 {[%clk
00:17:11]} {[%emt 00:00:45]} 16. Nxd6 {[%clk 00:15:46]} {[%emt 00:00:48]} Qxd6
{[%clk 00:17:15]} {[%emt 00:00:02]} 17. Bb5 {[%clk 00:15:48]} {[%emt 00:00:02]}
Qe6 {[%clk 00:16:09]} {[%emt 00:01:11]} 18. a5 {[%clk 00:14:53]} {[%emt
00:01:00]} f6 {[%clk 00:12:38]} {[%emt 00:03:36]} 19. Qe2 {[%clk 00:14:48]}
{[%emt 00:00:10]} Kh8 {[%clk 00:12:14]} {[%emt 00:00:29]} 20. Bh4 {[%clk
00:14:33]} {[%emt 00:00:19]} Qc8 {[%clk 00:09:27]} {[%emt 00:02:52]} 21. axb6
{[%clk 00:12:23]} {[%emt 00:02:15]} axb6 {[%clk 00:09:31]} {[%emt 00:00:02]} 22.
f3 {[%clk 00:12:27]} {[%emt 00:00:02]} Rd8 {[%clk 00:07:38]} {[%emt 00:01:57]}
23. Rxa8 {[%clk 00:12:05]} {[%emt 00:00:27]} Qxa8 {[%clk 00:07:24]} {[%emt
00:00:19]} 24. Rd1 {[%clk 00:12:09]} {[%emt 00:00:01]} g5 {[%clk 00:06:13]}
{[%emt 00:01:16]} 25. Bf2 {[%clk 00:12:07]} {[%emt 00:00:06]} Bf8 {[%clk
00:06:02]} {[%emt 00:00:16]} 26. h4 {[%clk 00:11:52]} {[%emt 00:00:20]} h6
{[%clk 00:05:57]} {[%emt 00:00:11]} 27. hxg5 {[%clk 00:11:41]} {[%emt
00:00:16]} hxg5 {[%clk 00:06:00]} {[%emt 00:00:02]} 28. g4 {[%clk 00:11:26]}
{[%emt 00:00:18]} Kg7 {[%clk 00:05:42]} {[%emt 00:00:24]} 29. Kg2 {[%clk
00:11:08]} {[%emt 00:00:24]} Be7 {[%clk 00:05:42]} {[%emt 00:00:04]} 30. Rxd8
{[%clk 00:10:17]} {[%emt 00:00:56]} Qxd8 {[%clk 00:05:42]} {[%emt 00:00:06]} 31.
Qc4 {[%clk 00:10:08]} {[%emt 00:00:14]} Bc8 {[%clk 00:05:09]} {[%emt 00:00:38]}
32. Ba4 {[%clk 00:09:57]} {[%emt 00:00:16]} Qg8 {[%clk 00:04:26]} {[%emt
00:00:47]} 33. Qb5 {[%clk 00:09:56]} {[%emt 00:00:06]} Bd8 {[%clk 00:04:02]}
{[%emt 00:00:30]} 34. b4 {[%clk 00:09:27]} {[%emt 00:00:34]} cxb4 {[%clk
00:04:02]} {[%emt 00:00:05]} 35. cxb4 {[%clk 00:09:24]} {[%emt 00:00:08]} Qe6
{[%clk 00:03:56]} {[%emt 00:00:11]} 36. Qd3 {[%clk 00:09:15]} {[%emt 00:00:13]}
Bc7 {[%clk 00:02:21]} {[%emt 00:01:40]} 37. Bb3 {[%clk 00:09:04]} {[%emt
00:00:17]} Qc6 {[%clk 00:01:42]} {[%emt 00:00:43]} 38. b5 {[%clk 00:09:03]}
{[%emt 00:00:07]} Qd7 {[%clk 00:00:49]} {[%emt 00:00:58]} 39. Qc4 {[%clk
00:09:07]} {[%emt 00:00:01]} Bb7 {[%clk 00:00:47]} {[%emt 00:00:07]} 40. Qg8+
{[%clk 00:09:00]} {[%emt 00:00:12]} Kh6 {[%clk 00:00:46]} {[%emt 00:00:06]} 41.
Bf7 {[%clk 00:09:04]} 1-0



[ePGN "0.1;DGT LiveChess/2.2.6"]